fUST/lending_fUST_20260427
["ID","MTS","AMOUNT","RATE_DAILY","PERIOD"]
[421239466,1777287038333,-300.0,0.00010801,2]
[421239467,1777287038343,-300.0,0.00010801,2]
[421239468,1777287038353,-300.0,0.00010801,2]
[421239469,1777287038362,-300.0,0.00010801,2]
[421239470,1777287038372,-300.0,0.00010801,2]
[421239471,1777287038381,-300.0,0.00010801,2]
[421239472,1777287038391,-300.0,0.00010801,2]
[421239473,1777287038400,-300.0,0.00010801,2]
[421239474,1777287038410,-300.0,0.00010801,2]
[421239475,1777287038419,-300.0,0.00010801,2]
[421239476,1777287038429,-300.0,0.00010801,2]
[421239477,1777287038438,-442.11446693,0.00010801,2]
[421239478,1777287038448,-500.0,0.00010825,2]
[421239479,1777287038457,-557.59683716,0.00010825,2]
[421239480,1777287038471,-500.0,0.00010825,2]
[421239481,1777287038480,-528.15360351,0.00010825,2]
[421239482,1777287038490,-151.5,0.00010825,2]
[421239483,1777287038500,-151.5,0.00010825,2]
[421239484,1777287038509,-151.5,0.00010825,2]
[421239485,1777287038519,-151.5,0.00010825,2]
[421239486,1777287038528,-151.5,0.00010825,2]
[421239487,1777287038538,-151.5,0.00010825,2]
[421239488,1777287038547,-151.5,0.00010825,2]
[421239489,1777287038556,-159.48910899,0.00010825,2]
[421239490,1777287038566,-253.24015053,0.00010825,2]
[421239491,1777287038575,-206.0,0.00010825,2]
[421239492,1777287038584,-1063.22989621,0.000109,2]
[421239493,1777287038593,-2644.53745781,0.000109,2]
[421239494,1777287038603,-2324.9044889,0.000109,2]
[421239495,1777287038614,-65.40121016,0.000109,2]
[421239496,1777287038624,-500.0,0.00010914,2]
[421239497,1777287038634,-500.0,0.00010914,2]
[421239498,1777287038643,-497.45561191,0.00010914,2]
[421239499,1777287038652,-200.0,0.00010959,2]
[421239500,1777287038662,-5218.19094789,0.00010988,2]
[421239501,1777287038671,-522.59070082,0.00011066,2]
[421239502,1777287038683,-354.65807083,0.00011066,2]
[421239503,1777287038694,-1273.48922835,0.00011066,2]
[421239504,1777287038704,-271.89077165,0.00011077,2]
[421239512,1777287040439,-228.10922835,0.00011077,2]
[421239513,1777287040448,-500.0,0.00011077,2]
[421239514,1777287040458,-500.0,0.00011077,2]
[421239515,1777287040467,-500.0,0.00011077,2]
[421239516,1777287040476,-500.0,0.00011077,2]
[421239517,1777287040485,-500.0,0.00011077,2]
[421239518,1777287040495,-500.0,0.00011077,2]
[421239519,1777287040504,-500.0,0.00011077,2]
[421239520,1777287040513,-500.0,0.00011077,2]
[421239521,1777287040522,-494.14165318,0.00011077,2]
[421239522,1777287040531,-500.0,0.00011077,2]
[421239523,1777287040540,-500.0,0.00011077,2]
[421239524,1777287040549,-500.0,0.00011077,2]
[421239525,1777287040558,-500.0,0.00011077,2]
[421239526,1777287040568,-500.0,0.00011077,2]
[421239527,1777287040577,-500.0,0.00011077,2]
[421239528,1777287040586,-500.0,0.00011077,2]
[421239529,1777287040596,-500.0,0.00011077,2]
[421239530,1777287040605,-500.0,0.00011077,2]
[421239531,1777287040614,-513.05949585,0.00011077,2]
[421239532,1777287040623,-500.0,0.00011077,2]
[421239533,1777287040632,-500.0,0.00011077,2]
[421239534,1777287040641,-500.0,0.00011077,2]
[421239535,1777287040651,-500.0,0.00011077,2]
[421239536,1777287040660,-500.0,0.00011077,2]
[421239537,1777287040669,-500.0,0.00011077,2]
[421239538,1777287040678,-500.0,0.00011077,2]
[421239539,1777287040687,-500.0,0.00011077,2]
[421239540,1777287040696,-500.0,0.00011077,2]
[421239541,1777287040705,-500.0,0.00011077,2]
[421239542,1777287040714,-503.18362988,0.00011077,2]
[421239543,1777287040722,-500.0,0.00011077,2]
[421239544,1777287040731,-500.0,0.00011077,2]
[421239545,1777287040741,-500.0,0.00011077,2]
[421239546,1777287040750,-500.0,0.00011077,2]
[421239547,1777287040759,-500.0,0.00011077,2]
[421239548,1777287040769,-500.0,0.00011077,2]
[421239549,1777287040778,-500.0,0.00011077,2]
[421239550,1777287040787,-500.0,0.00011077,2]
[421239551,1777287040797,-500.0,0.00011077,2]
[421239552,1777287040806,-634.30662192,0.00011077,2]
[421239553,1777287040815,-500.0,0.00011077,2]
[421239554,1777287040824,-500.0,0.00011077,2]
[421239555,1777287040833,-240.39917851,0.00011077,2]
[421239556,1777287040842,-500.0,0.00011077,2]
[421239557,1777287040851,-500.0,0.00011077,2]
[421239558,1777287040860,-331.95893593,0.00011077,2]
[421239559,1777287040869,-500.0,0.00011077,2]
[421239560,1777287040879,-500.0,0.00011077,2]
[421239561,1777287040887,-500.0,0.00011077,2]
[421239562,1777287040897,-500.0,0.00011077,2]
[421239563,1777287040906,-500.0,0.00011077,2]
[421239564,1777287040915,-500.0,0.00011079,2]
[421239565,1777287040924,-273.51581273,0.00011079,2]
[421239566,1777287040933,-500.0,0.00011079,2]
[421239567,1777287041175,-420.31862857,0.00011079,2]
[421239568,1777287041185,-500.0,0.00011079,2]
[421239569,1777287041195,-191.46106891,0.00011079,2]
[421239570,1777287041206,-3300.91617778,0.0001108,2]
[421239571,1777287041219,-4182.12112569,0.0001108,2]
[421239572,1777287041231,-1273.18360408,0.0001108,2]
[421239583,1777287043071,-10000.0,0.0001108,2]
[421239584,1777287043083,-2455.38369134,0.0001108,2]
[421239698,1777287045969,-569.37999998,0.0001108,2]
[421239705,1777287046024,-121793.51832738,0.0001108,2]
[421239707,1777287046033,-500.0,0.00011087,2]
[421239709,1777287046043,-11593.96781764,0.00011088,2]
[421239711,1777287046055,-907.88036448,0.00011088,2]
[421239714,1777287046066,-4132.80713712,0.00011088,2]
[421239721,1777287046130,-12466.1229839,0.00011088,2]
[421240294,1777287051583,249.28765783,0.00025596,120]
[421240329,1777287051895,249.28765783,0.00025596,120]
[421240360,1777287052332,249.28765783,0.00025596,120]
[421240391,1777287052627,249.28765783,0.00025596,120]
[421240415,1777287052991,249.28765783,0.00025596,120]
[421240416,1777287053297,249.28765783,0.00025596,120]
[421240417,1777287053582,249.28765783,0.00025596,120]
[421240436,1777287054202,249.28765783,0.00025596,120]
[421240437,1777287054506,249.28765783,0.00025596,120]
[421240445,1777287054807,249.28765783,0.00025596,120]
[421240448,1777287055113,249.28765783,0.00025596,120]
[421240449,1777287055409,249.28765783,0.00025596,120]
[421240450,1777287055742,249.28765783,0.00025596,120]
[421240451,1777287056043,249.28765783,0.00025596,120]
[421240452,1777287056358,249.28765783,0.00025596,120]
[421261678,1777287646635,4145.47550269,7.6e-05,2]
[421261759,1777288041441,10029.0,0.00025602,120]
[421261788,1777288200757,987.63458817,7.3e-05,10]
[421261799,1777288216833,1150.42333581,7.3e-05,10]
[421261955,1777288238279,-150.0,7.338e-05,2]
[421261957,1777288238289,-666.45443342,7.6e-05,2]
[421261959,1777288238298,-177.0,9.338e-05,2]
[421261961,1777288238308,-231.40427684,9.999e-05,2]
[421261962,1777288238343,15000.0,0.00015,120]
[421261963,1777288238384,-85.42972316,9.999e-05,2]
[421261964,1777288238394,-300.0,9.999e-05,2]
[421261965,1777288238403,-262.38027684,9.999e-05,2]
[421261966,1777288238438,-937.61972316,9.999e-05,2]
[421261967,1777288238447,-33295.66,0.0001,2]
[421261968,1777288238457,-300.0,0.00010199,2]
[421261969,1777288238466,-300.0,0.00010199,2]
[421261970,1777288238476,-300.0,0.00010199,2]
[421261971,1777288238485,-300.0,0.00010199,2]
[421261972,1777288238494,-300.0,0.00010199,2]
[421261973,1777288238504,-300.0,0.00010199,2]
[421261974,1777288238513,-300.0,0.00010199,2]
[421261975,1777288238523,-300.0,0.00010199,2]
[421261976,1777288238532,-300.0,0.00010199,2]
[421261977,1777288238542,-300.0,0.00010199,2]
[421261978,1777288238552,-300.0,0.00010199,2]
[421261979,1777288238562,-300.0,0.00010199,2]
[421261980,1777288238571,-300.0,0.00010199,2]
[421261981,1777288238581,-300.0,0.00010199,2]
[421261982,1777288238590,-300.0,0.00010199,2]
[421261983,1777288238600,-600.0,0.00010402,2]
[421261984,1777288238610,-500.0,0.00010786,2]
[421261985,1777288238620,-500.0,0.00010786,2]
[421261986,1777288238629,-647.99543733,0.00010786,2]
[421261987,1777288238638,-304.48879761,0.00010786,2]
[421261988,1777288238648,-500.0,0.00010786,2]
[421261989,1777288238657,-459.36740243,0.00010786,2]
[421261990,1777288238666,-169001.67434336,0.00010787,2]
[421261991,1777288238677,-18646.02527327,0.00010787,2]
[421261992,1777288238688,-172353.18705307,0.00010787,2]
[421262001,1777288240632,-7787.3,0.00010787,2]
[421262002,1777288240688,-404.36207729,0.00010787,2]
[421262012,1777288244630,1500.0,0.0001,30]
[421262032,1777288247045,-23785.48540802,0.00010787,2]
[421262033,1777288247101,-11116.04166623,0.00010787,2]
[421262044,1777288248769,-10000.0,0.00010787,2]
[421262045,1777288248781,-414.48375,0.00010787,2]
[421262046,1777288248829,-46400.0,0.00010787,2]
[421262174,1777288371554,150.14886585,0.00025602,120]
[421262175,1777288371593,215.54586863,0.00025602,120]
[421262321,1777288612639,2017.0,4.008e-05,2]
[421262933,1777289438684,-1042.37256033,0.00010066,2]
[421262934,1777289438740,-2162.26699012,0.00010066,2]
[421262935,1777289438749,-150.0,0.00010246,2]
[421262936,1777289438759,-253.468,0.00010375,2]
[421262937,1777289438768,-4696.37185311,0.00010487,2]
[421262938,1777289438777,-300.0,0.00010585,2]
[421262939,1777289438787,-300.0,0.00010585,2]
[421262940,1777289438797,-186.29791658,0.00010586,2]
[421262942,1777289438806,-500.0,0.00010586,2]
[421262943,1777289438815,-588.6546108,0.00010586,2]
[421262944,1777289438824,-400.11573984,0.00010586,2]
[421262945,1777289438833,-27754.17377916,0.00010587,2]
[421262946,1777289438844,-131117.90204067,0.00010587,2]
[421262947,1777289438856,-2942.59355223,0.00010587,2]
[421262962,1777289440790,-459.34763194,0.00010587,2]
[421262980,1777289444049,-589.72067311,0.00010587,2]
[421262993,1777289446902,-19301.95059916,0.00010587,2]
[421263035,1777289481134,-4731.49491875,0.0001048,2]
[421263123,1777289592084,1076.67,0.00024657,120]
[421263129,1777289608025,1000.0,0.00024657,120]
[421263388,1777290005211,155.00085321,0.00025547,120]
[421263413,1777290045655,465.0,0.00025547,120]
[421263432,1777290075667,1395.0,0.00025547,120]
[421263585,1777290574526,-374.93774359,5e-05,2]
[421263634,1777290632479,-420.32401852,5.939e-05,2]
[421263635,1777290632488,-100.25611627,5.999e-05,2]
[421263644,1777290638903,-199.74388373,5.999e-05,2]
[421263645,1777290638911,-572.52551837,9.799e-05,2]
[421263646,1777290638920,-73348.16765124,9.8e-05,2]
[421263647,1777290638956,-331.95891175,9.8e-05,2]
[421263658,1777290641050,-374.93774359,9.8e-05,2]
[421263659,1777290641062,-7768.6,9.8e-05,2]
[421263660,1777290641103,-2333.18114726,9.8e-05,2]
[421263667,1777290643719,-3166.47645286,9.8e-05,2]
[421263668,1777290643731,-1275.38190145,9.8e-05,2]
[421263669,1777290643743,-937.12957805,9.8e-05,2]
[421263670,1777290643773,-1888.90328211,9.8e-05,2]
[421263673,1777290647007,-11681.9156605,9.8e-05,2]
[421263706,1777291217488,332.44,1e-08,2]
[421263707,1777291246610,1792.29707991,7.6e-05,2]
[421263708,1777291578886,151.0,0.00025607,120]
[421263712,1777291687577,-175.46574712,0.00017911,60]
[421263713,1777291687601,-2500.0,0.00018,45]
[421263714,1777291687625,-178.19514787,0.00018114,60]
[421263715,1777291687651,-1000.0,0.00019,19]
[421263716,1777291687673,-3000.0,0.00019,14]
[421263717,1777291687741,-3242.8981256,0.000198,14]
[421263809,1777291838834,-435.0,7.6e-05,2]
[421263811,1777291838846,-972.7777535,7.6e-05,2]
[421263813,1777291838856,-150.0,8.15e-05,2]
[421263815,1777291838866,-204.8326314,9.141e-05,2]
[421263818,1777291838877,-374.9377436,9.8e-05,2]
[421263820,1777291838886,-159.71,9.8e-05,2]
[421263822,1777291838896,-300.0,9.899e-05,2]
[421263824,1777291838906,-27308.7308318,9.9e-05,2]
[421263826,1777291838916,-4579.67598148,0.0001,2]
[421263828,1777291838926,-296.62197707,0.00010042,2]
[421263830,1777291838936,-177.0,0.0001015,2]
[421263832,1777291838946,-300.0,0.00010194,2]
[421263835,1777291838956,-300.0,0.00010194,2]
[421263837,1777291838966,-300.0,0.00010194,2]
[421263839,1777291838975,-300.0,0.00010194,2]
[421263841,1777291838985,-300.0,0.00010194,2]
[421263843,1777291838995,-300.0,0.00010194,2]
[421263845,1777291839005,-300.0,0.00010194,2]
[421263847,1777291839015,-300.0,0.00010194,2]
[421263849,1777291839025,-300.0,0.00010194,2]
[421263851,1777291839035,-300.0,0.00010194,2]
[421263853,1777291839045,-300.0,0.00010194,2]
[421263855,1777291839054,-300.0,0.00010194,2]
[421263857,1777291839064,-300.0,0.00010194,2]
[421263859,1777291839074,-300.0,0.00010194,2]
[421263861,1777291839085,-300.0,0.00010194,2]
[421263863,1777291839094,-445.30304067,0.00010215,2]
[421263866,1777291839104,-152.0,0.00010226,7]
[421263868,1777291839113,-152.0,0.00010226,7]
[421263870,1777291839123,-152.0,0.00010226,7]
[421263872,1777291839133,-152.0,0.00010226,7]
[421263874,1777291839142,-500.0,0.00010299,2]
[421263876,1777291839152,-500.0,0.00010299,2]
[421263878,1777291839165,-500.0,0.00010299,2]
[421263880,1777291839175,-500.0,0.00010299,2]
[421263882,1777291839184,-500.0,0.00010299,2]
[421263884,1777291839194,-500.0,0.00010299,2]
[421263887,1777291839205,-536.42886913,0.00010299,2]
[421263889,1777291839214,-500.0,0.00010299,2]
[421263891,1777291839224,-36089.61836843,0.000103,2]
[421263893,1777291839234,-197.80235268,0.00010312,2]
[421263895,1777291839243,-185552.87005971,0.00010313,2]
[421263897,1777291839255,-28662.36803948,0.00010313,2]
[421263900,1777291839272,-3172.76660099,0.00010313,2]
[421263902,1777291839283,-14665.73601435,0.00010313,2]
[421263904,1777291839295,-886.0,0.00010313,2]
[421264110,1777291841196,-380.36253887,0.00010313,2]
[421264113,1777291841208,-1719.26634701,0.00010313,2]
[421264116,1777291841234,-1023.33199203,0.00010313,2]
[421264119,1777291841250,-5276.11361017,0.00010313,2]
[421264281,1777291845411,-259.14535789,0.00010313,2]
[421264287,1777291847179,-19987.75349073,0.00010313,2]
[421264288,1777291847234,-14023.4333473,0.00010313,2]
[421264289,1777291925332,2639.5230482,0.00024657,120]
[421264321,1777293031861,-5000.0,9.634e-05,10]
[421264323,1777293031872,-150.0,9.732e-05,2]
[421264325,1777293031882,-202.774,9.898e-05,2]
[421264327,1777293031891,-300.0,9.999e-05,2]
[421264329,1777293031901,-300.0,9.999e-05,2]
[421264330,1777293031911,-300.0,9.999e-05,2]
[421264332,1777293031921,-274.0,9.999e-05,2]
[421264333,1777293031930,-1200.0,9.999e-05,2]
[421264334,1777293031940,-392.93654101,9.999e-05,2]
[421264335,1777293031949,-494.43599963,0.0001,2]
[421264336,1777293031968,-5576.50962061,0.0001,2]
[421264337,1777293031979,-1120.78017483,0.0001,2]
[421264358,1777293038164,-179.61422064,0.0001,2]
[421264359,1777293038262,-37891.27847055,0.0001,2]
[421264378,1777293040462,-15539.8,0.0001,2]
[421264385,1777293040518,-6482.3599201,0.0001,2]
[421264408,1777293046439,-4543.29031523,9.9e-05,10]
[421264409,1777293046449,-40479.61096206,0.0001,2]
[421264410,1777293046460,-929.08524119,0.0001,2]
[421264411,1777293062795,-569.38963267,9.511e-05,2]
[421264412,1777293062824,-300.0,9.999e-05,2]
[421264417,1777293481141,1000.0,0.000246,120]
[421264418,1777293629337,232.0,0.00022656,120]
[421264420,1777293889206,25000.0,0.00025582,120]
[421264421,1777293958163,661.21,4e-05,2]
[421264442,1777294232037,-1549.21067812,8.735e-05,2]
[421264444,1777294232048,-469.74779629,8.735e-05,2]
[421264445,1777294232059,-281.6786739,8.735e-05,2]
[421264446,1777294232071,-395.9895,8.735e-05,2]
[421264447,1777294232091,-1374.2881105,8.735e-05,2]
[421264448,1777294232101,-1949.77466071,8.823e-05,2]
[421264449,1777294232110,-150.0,8.868e-05,2]
[421264450,1777294232120,-1410.77935962,9.229e-05,2]
[421264451,1777294232129,-115.15786917,9.299e-05,2]
[421264452,1777294232140,-184.84213083,9.299e-05,2]
[421264453,1777294232150,-300.0,9.299e-05,2]
[421264454,1777294232160,-1200.0,9.299e-05,2]
[421264455,1777294232169,-3533.28390637,9.3e-05,2]
[421264456,1777294232179,-686.80626576,9.3e-05,2]
[421264458,1777294232188,-1236.25127837,9.3e-05,2]
[421264459,1777294232197,-1559.43117578,9.3e-05,2]
[421264469,1777294238342,-638.34887466,9.3e-05,2]
[421264470,1777294238353,-304.71612534,9.3e-05,2]
[421264471,1777294238364,-2379.00998034,9.3e-05,2]
[421264472,1777294238449,-750.30522313,9.3e-05,2]
[421264473,1777294238459,-4366.76092037,9.3e-05,2]
[421264474,1777294238503,-578.24419312,9.3e-05,2]
[421264475,1777294238512,-6730.70140447,9.3e-05,2]
[421264476,1777294238522,-8791.12020176,9.3e-05,2]
[421264477,1777294238531,-11126.26150535,9.3e-05,2]
[421264478,1777294238541,-300.0,9.485e-05,2]
[421264479,1777294238551,-300.0,9.485e-05,2]
[421264480,1777294238560,-300.0,9.485e-05,2]
[421264481,1777294238570,-300.0,9.485e-05,2]
[421264482,1777294238580,-300.0,9.485e-05,2]
[421264483,1777294238589,-300.0,9.485e-05,2]
[421264484,1777294238599,-300.0,9.485e-05,2]
[421264485,1777294238608,-300.0,9.485e-05,2]
[421264486,1777294238618,-300.0,9.485e-05,2]
[421264487,1777294238627,-300.0,9.485e-05,2]
[421264488,1777294238636,-300.0,9.485e-05,2]
[421264489,1777294238645,-300.0,9.485e-05,2]
[421264490,1777294238655,-300.0,9.485e-05,2]
[421264491,1777294238664,-300.0,9.485e-05,2]
[421264492,1777294238673,-300.0,9.485e-05,2]
[421264493,1777294238682,-600.0,9.674e-05,2]
[421264494,1777294238692,-134060.88023338,9.699e-05,2]
[421264496,1777294240598,-8774.57436155,9.699e-05,2]
[421264497,1777294240609,-381.21178026,9.699e-05,2]
[421264551,1777294243333,-287.6195,9.699e-05,2]
[421264563,1777294243440,-52247.4196524,9.699e-05,2]
[421264566,1777294243452,-10000.0,9.699e-05,2]
[421264603,1777294246552,-355.3,9.699e-05,2]
[421264604,1777294246606,-34935.93299234,9.699e-05,2]
[421264605,1777294289885,500.0,0.00024658,120]
[421264606,1777294365606,500.0,0.00024658,120]
[421264607,1777294389039,500.0,0.00024658,120]
[421264608,1777294656793,1218.90608944,0.00025619,120]
[421264609,1777294844132,835.51069104,7.6e-05,2]
[421264611,1777295138333,-300.0,7.598e-05,2]
[421264612,1777295138359,-114.48375,7.598e-05,2]
[421264645,1777295432241,-850.15084257,7.598e-05,2]
[421264646,1777295432253,-234.84915743,7.598e-05,2]
[421264647,1777295432263,-150.0,7.598e-05,2]
[421264648,1777295432273,-500.0,7.599e-05,2]
[421264649,1777295432282,-404.86393812,7.599e-05,2]
[421264650,1777295432296,-95.13606188,7.599e-05,2]
[421264651,1777295432305,-500.0,7.599e-05,2]
[421264652,1777295432315,-500.0,7.599e-05,2]
[421264653,1777295432324,-500.0,7.599e-05,2]
[421264654,1777295432333,-500.0,7.599e-05,2]
[421264655,1777295432343,-156.18352966,7.599e-05,2]
[421264656,1777295432355,-343.81647034,7.599e-05,2]
[421264658,1777295432364,-534.25166411,7.599e-05,2]
[421264660,1777295432373,-500.0,7.599e-05,2]
[421264663,1777295432382,-500.0,7.599e-05,2]
[421264666,1777295432391,-500.0,7.599e-05,2]
[421264669,1777295432400,-500.0,7.599e-05,2]
[421264671,1777295432409,-500.0,7.599e-05,2]
[421264673,1777295432418,-500.0,7.599e-05,2]
[421264675,1777295432427,-500.0,7.599e-05,2]
[421264677,1777295432436,-500.0,7.599e-05,2]
[421264679,1777295432446,-500.0,7.599e-05,2]
[421264681,1777295432455,-500.0,7.599e-05,2]
[421264683,1777295432465,-102.66487724,7.599e-05,2]
[421264697,1777295438467,-952.97724851,7.6e-05,2]
[421264698,1777295438574,-988.84066671,7.6e-05,2]
[421264699,1777295438586,-43588.3209793,7.6e-05,2]
[421264700,1777295438629,-70363.30145632,7.6e-05,2]
[421264701,1777295438639,-300.0,7.751e-05,2]
[421264702,1777295438648,-300.0,7.751e-05,2]
[421264703,1777295438658,-300.0,7.751e-05,2]
[421264704,1777295438667,-300.0,7.751e-05,2]
[421264705,1777295438677,-300.0,7.751e-05,2]
[421264706,1777295438687,-300.0,7.751e-05,2]
[421264707,1777295438696,-300.0,7.751e-05,2]
[421264708,1777295438706,-300.0,7.751e-05,2]
[421264709,1777295438715,-300.0,7.751e-05,2]
[421264710,1777295438724,-300.0,7.751e-05,2]
[421264711,1777295438734,-300.0,7.751e-05,2]
[421264712,1777295438743,-300.0,7.751e-05,2]
[421264713,1777295438753,-300.0,7.751e-05,2]
[421264714,1777295438762,-300.0,7.751e-05,2]
[421264715,1777295438771,-300.0,7.751e-05,2]
[421264716,1777295438781,-600.0,7.751e-05,2]
[421264717,1777295438790,-2655.78719318,7.913e-05,2]
[421264718,1777295438800,-578.00699559,7.974e-05,2]
[421264719,1777295438810,-1040.41259205,7.974e-05,2]
[421264720,1777295438820,-1849.62238587,7.974e-05,2]
[421264721,1777295438829,-2890.03497793,7.974e-05,2]
[421264722,1777295438839,-4161.65036822,7.974e-05,2]
[421264723,1777295438848,-5664.46855674,7.974e-05,2]
[421264724,1777295438857,-7398.4895435,7.974e-05,2]
[421264725,1777295438866,-9363.71332849,7.974e-05,2]
[421264726,1777295438877,-9669.52027497,7.974e-05,2]
[421264727,1777295438888,-1890.61963675,7.974e-05,2]
[421264728,1777295438897,-13987.76929318,7.974e-05,2]
[421264729,1777295438906,-16646.60147287,7.974e-05,2]
[421264730,1777295438915,-19536.6364508,7.974e-05,2]
[421264731,1777295438924,-22657.87422696,7.974e-05,2]
[421264732,1777295438933,-26010.31480136,7.974e-05,2]
[421264733,1777295438943,-29593.95817399,7.974e-05,2]
[421264734,1777295438952,-13739.5855507,7.974e-05,2]
[421264735,1777295438963,-1220.45182262,7.974e-05,2]
[421264736,1777295438975,-2463.48621564,7.974e-05,2]
[421264737,1777295438986,-2536.51378436,7.974e-05,2]
[421264742,1777295440807,-1019.05201729,7.974e-05,2]
[421264760,1777295445355,-468.942,7.974e-05,2]
[421264761,1777295445409,-1179.67946753,7.974e-05,2]
[421264762,1777295445420,-3256.23330091,7.974e-05,2]
[421264763,1777295445431,-7524.86018581,7.974e-05,2]
[421264764,1777295445441,-739.11989407,7.974e-05,2]
[421264765,1777295445450,-1330.41580932,7.974e-05,2]
[421264766,1777295445459,-2365.18366101,7.974e-05,2]
[421264767,1777295445468,-3695.59947033,7.974e-05,2]
[421264768,1777295445476,-5321.66323727,7.974e-05,2]
[421264769,1777295445486,-7243.37496184,7.974e-05,2]
[421264770,1777295445495,-9460.73464404,7.974e-05,2]
[421264771,1777295445503,-10623.14877272,8.456e-05,2]
[421264772,1777295445512,-720.0,8.526e-05,2]
[421264773,1777295445521,-358.865666,9.067e-05,2]
[421264775,1777295445530,-5637.47432106,9.245e-05,2]
[421264776,1777295445539,-864.0,9.379e-05,2]
[421264777,1777295445548,-177.0,9.598e-05,2]
[421264778,1777295445557,-9490.7533638,9.615e-05,2]
[421264779,1777295445567,-500.0,9.615e-05,2]
[421264780,1777295445577,-15102.4807869,9.616e-05,2]
[421264781,1777295445587,-5428.2587407,9.713e-05,2]
[421264782,1777295445596,-23878.18265388,9.72e-05,2]
[421264783,1777295445605,-33396.1000476,9.789e-05,2]
[421264784,1777295445614,-500.0,9.889e-05,2]
[421264785,1777295445624,-500.0,9.9e-05,2]
[421264786,1777295445637,-455.7012444,9.912e-05,2]
[421264787,1777295445647,-151.0,9.921e-05,2]
[421264788,1777295445656,-151.9244844,9.921e-05,2]
[421264789,1777295445665,-152.0,9.943e-05,7]
[421264790,1777295445675,-152.0,9.958e-05,7]
[421264792,1777295445684,-152.0,9.958e-05,7]
[421264793,1777295445692,-152.0,9.959e-05,7]
[421264794,1777295445702,-152.0,9.959e-05,7]
[421264795,1777295445711,-152.0,9.959e-05,7]
[421264796,1777295445720,-152.0,9.959e-05,7]
[421264797,1777295445729,-152.0,9.969e-05,7]
[421264798,1777295445738,-152.0,9.969e-05,7]
[421264799,1777295445748,-167.1741229,0.00010181,2]
[421264800,1777295445756,-537.6845,0.00010181,2]
[421264801,1777295445766,-2150.738,0.00010181,2]
[421264802,1777295445775,-2535.43517681,0.00010226,7]
[421264803,1777295445783,-557.5788265,0.00010236,2]
[421264804,1777295445793,-161.46865294,0.00010291,2]
[421264805,1777295445802,-436.0766054,0.00010299,2]
[421264806,1777295445812,-1744.30642161,0.00010299,2]
[421264807,1777295445821,-1000.0,0.00010317,2]
[421264808,1777295445829,-3924.68944861,0.00010408,2]
[421264809,1777295445839,-150.0,0.00010634,2]
[421264810,1777295445847,-150.0,0.00010634,2]
[421264811,1777295445856,-150.362,0.00010634,2]
[421264812,1777295445865,-150.0,0.00010634,2]
[421264813,1777295445874,-646.0,0.00010634,2]
[421264814,1777295445884,-2211.0,0.00010634,2]
[421264815,1777295445893,-1435.583,0.00010634,2]
[421264816,1777295445902,-442.0,0.00010634,2]
[421264817,1777295445911,-740.0,0.00010634,2]
[421264818,1777295445920,-185.0,0.00010634,2]
[421264819,1777295445929,-325.2570341,0.00010722,2]
[421264820,1777295445938,-2230.315306,0.00010729,2]
[421264821,1777295445947,-6970.24846074,0.00010792,2]
[421264822,1777295445956,-219.5619664,0.000108,2]
[421264823,1777295445965,-368.51363792,0.000108,2]
[421264824,1777295445974,-359.37,0.000108,2]
[421264825,1777295445983,-3678.44488808,0.00010866,2]
[421264826,1777295445992,-2117.6733179,0.00010895,2]
[421264827,1777295446001,-3369.8189566,0.00010896,2]
[421264828,1777295446010,-349.62463047,0.000109,2]
[421264829,1777295446019,-753.4130754,0.000109,2]
[421264830,1777295446028,-194.0,0.00011,2]
[421264831,1777295446037,-171.7,0.00011064,2]
[421264832,1777295446046,-171.05,0.00011078,2]
[421264834,1777295446055,-179.79,0.00011094,2]
[421264835,1777295446065,-472.5167865,0.00011181,2]
[421264836,1777295446074,-751.9082434,0.00011182,2]
[421264837,1777295446083,-2312.83697232,0.00011277,2]
[421264838,1777295446093,-1000.0,0.00011348,2]
[421264839,1777295446102,-244.0,0.00011348,2]
[421264840,1777295446111,-359.85972766,0.00011389,2]